[Event "Titled Tuesday Blitz August 24 2021"]
[White "Ovetchkin, Roman"]
[Black "Pastar, Slaven"]
[WhiteFideId "4119991"]
[BlackFideId "14402718"]
[WhiteElo "2432"]
[BlackElo "2150"]
[Result "1-0"]
[Round "10"]
[TimeControl "180+1"]
[Date "2021.08.24"]
[WhiteClock "0:01:02"]
[BlackClock "0:01:29"]

1. d4 {[%clk 0:03:00]}  b6 {[%clk 0:03:00]} 2. e4 {[%clk 0:02:59]}  Bb7 {[%clk 0:03:01]} 3. Bd3 {[%clk 0:03:00]}  Nf6 {[%clk 0:03:01]} 4. Nd2 {[%clk 0:02:59]}  e6 {[%clk 0:03:01]} 5. Qe2 {[%clk 0:02:57]}  c5 {[%clk 0:02:57]} 6. d5 {[%clk 0:02:44]}  exd5 {[%clk 0:02:56]} 7. exd5+ {[%clk 0:02:43]}  Qe7 {[%clk 0:02:56]} 8. c4 {[%clk 0:02:44]}  Na6 {[%clk 0:02:49]} 9. Ngf3 {[%clk 0:02:31]}  Nb4 {[%clk 0:02:44]} 10. Bb1 {[%clk 0:02:31]}  O-O-O {[%clk 0:02:33]} 11. Qxe7 {[%clk 0:02:27]}  Bxe7 {[%clk 0:02:32]} 12. a3 {[%clk 0:02:20]}  Na6 {[%clk 0:02:31]} 13. O-O {[%clk 0:02:06]}  b5 {[%clk 0:02:27]} 14. b3 {[%clk 0:01:53]}  Nc7 {[%clk 0:02:17]} 15. Bb2 {[%clk 0:01:50]}  d6 {[%clk 0:02:17]} 16. Re1 {[%clk 0:01:44]}  Rde8 {[%clk 0:02:15]} 17. Bd3 {[%clk 0:01:37]}  Kb8 {[%clk 0:02:11]} 18. Ne4 {[%clk 0:01:18]}  Nxe4 {[%clk 0:02:06]} 19. Rxe4 {[%clk 0:01:05]}  f6 {[%clk 0:01:46]} 20. Rae1 {[%clk 0:01:04]}  h6 {[%clk 0:01:29]} 21. Rxe7 {[%clk 0:01:02]} 1-0


[Site "https://www.chess.com"]

[Event "Titled Tuesday Blitz August 24 2021"]
[White "Pakleza, Zbigniew"]
[Black "Sarana, Alexey"]
[WhiteFideId "1119290"]
[BlackFideId "24133795"]
[WhiteElo "2526"]
[BlackElo "2646"]
[Result "0-1"]
[Round "10"]
[TimeControl "180+1"]
[Date "2021.08.24"]
[WhiteClock "0:00:08"]
[BlackClock "0:01:43"]

1. Nf3 {[%clk 0:03:00]}  d5 {[%clk 0:03:00]} 2. c4 {[%clk 0:02:59]}  d4 {[%clk 0:02:59]} 3. e3 {[%clk 0:02:56]}  Nc6 {[%clk 0:03:00]} 4. b4 {[%clk 0:02:52]}  dxe3 {[%clk 0:02:59]} 5. fxe3 {[%clk 0:02:52]}  Nxb4 {[%clk 0:03:00]} 6. Qa4+ {[%clk 0:02:37]}  Nc6 {[%clk 0:02:58]} 7. d4 {[%clk 0:02:36]}  Bd7 {[%clk 0:02:56]} 8. Qb3 {[%clk 0:02:33]}  b6 {[%clk 0:02:55]} 9. Bd3 {[%clk 0:02:28]}  Nf6 {[%clk 0:02:56]} 10. O-O {[%clk 0:02:27]}  g6 {[%clk 0:02:56]} 11. Bb2 {[%clk 0:02:16]}  Bg7 {[%clk 0:02:56]} 12. Nbd2 {[%clk 0:02:17]}  O-O {[%clk 0:02:55]} 13. e4 {[%clk 0:02:13]}  Nh5 {[%clk 0:02:54]} 14. e5 {[%clk 0:02:02]}  Na5 {[%clk 0:02:40]} 15. Qc2 {[%clk 0:01:54]}  Rc8 {[%clk 0:02:40]} 16. Rae1 {[%clk 0:01:46]}  b5 {[%clk 0:02:21]} 17. cxb5 {[%clk 0:01:40]}  c6 {[%clk 0:02:22]} 18. bxc6 {[%clk 0:01:33]}  Nxc6 {[%clk 0:02:23]} 19. Qd1 {[%clk 0:01:13]}  Nf4 {[%clk 0:02:18]} 20. Be4 {[%clk 0:01:06]}  Nb4 {[%clk 0:02:18]} 21. Qb3 {[%clk 0:00:58]}  Rb8 {[%clk 0:02:12]} 22. Qa3 {[%clk 0:00:51]}  Bb5 {[%clk 0:02:08]} 23. g3 {[%clk 0:00:31]}  Nfd3 {[%clk 0:01:59]} 24. Bxd3 {[%clk 0:00:30]}  Nxd3 {[%clk 0:02:00]} 25. Ba1 {[%clk 0:00:17]}  Nxe1 {[%clk 0:01:59]} 26. Rxe1 {[%clk 0:00:18]}  Bc6 {[%clk 0:02:00]} 27. Qxa7 {[%clk 0:00:14]}  Bh6 {[%clk 0:02:00]} 28. Qc5 {[%clk 0:00:13]}  Rc8 {[%clk 0:02:00]} 29. Qa3 {[%clk 0:00:11]}  Qd7 {[%clk 0:01:53]} 30. Ne4 {[%clk 0:00:10]}  Rfd8 {[%clk 0:01:51]} 31. Kg2 {[%clk 0:00:10]}  Ra8 {[%clk 0:01:51]} 32. Qb2 {[%clk 0:00:09]}  Qd5 {[%clk 0:01:50]} 33. a3 {[%clk 0:00:09]}  Rab8 {[%clk 0:01:45]} 34. Qf2 {[%clk 0:00:09]}  Rb3 {[%clk 0:01:44]} 35. Ned2 {[%clk 0:00:08]}  Bxd2 {[%clk 0:01:43]} 0-1


[Site "https://www.chess.com"]

[Event "Titled Tuesday Blitz August 24 2021"]
[White "Petrovskyi, Vadym"]
[Black "Tokhirjonova, Gulrukhbegim"]
[WhiteFideId "14165210"]
[BlackFideId "14203626"]
[WhiteElo "2334"]
[BlackElo "2236"]
[Result "0-1"]
[Round "10"]
[TimeControl "180+1"]
[Date "2021.08.24"]
[WhiteClock "0:00:02"]
[BlackClock "0:00:47"]

1. e4 {[%clk 0:03:00]}  e5 {[%clk 0:02:59]} 2. Nf3 {[%clk 0:03:01]}  Nc6 {[%clk 0:02:58]} 3. d4 {[%clk 0:03:00]}  exd4 {[%clk 0:02:58]} 4. Bc4 {[%clk 0:03:00]}  Bc5 {[%clk 0:02:57]} 5. O-O {[%clk 0:03:00]}  d6 {[%clk 0:02:51]} 6. c3 {[%clk 0:03:00]}  dxc3 {[%clk 0:02:50]} 7. Qb3 {[%clk 0:02:57]}  Qe7 {[%clk 0:02:47]} 8. Bg5 {[%clk 0:02:53]}  Nf6 {[%clk 0:02:40]} 9. Nxc3 {[%clk 0:02:52]}  O-O {[%clk 0:02:12]} 10. Nd5 {[%clk 0:02:50]}  Qd8 {[%clk 0:02:12]} 11. e5 {[%clk 0:01:40]}  dxe5 {[%clk 0:02:06]} 12. Rad1 {[%clk 0:01:40]}  Bd6 {[%clk 0:01:56]} 13. Rfe1 {[%clk 0:01:14]}  Na5 {[%clk 0:01:52]} 14. Qc2 {[%clk 0:01:12]}  Nxc4 {[%clk 0:01:52]} 15. Qxc4 {[%clk 0:01:13]}  Be6 {[%clk 0:01:52]} 16. Qh4 {[%clk 0:01:07]}  Bxd5 {[%clk 0:01:43]} 17. Rxd5 {[%clk 0:01:07]}  h6 {[%clk 0:01:36]} 18. Bxf6 {[%clk 0:00:40]}  Qxf6 {[%clk 0:01:35]} 19. Qe4 {[%clk 0:00:40]}  Rfe8 {[%clk 0:01:34]} 20. Rb5 {[%clk 0:00:39]}  b6 {[%clk 0:01:34]} 21. Nxe5 {[%clk 0:00:39]}  c6 {[%clk 0:01:11]} 22. Qxc6 {[%clk 0:00:09]}  Bxe5 {[%clk 0:01:10]} 23. Qd5 {[%clk 0:00:09]}  Bxb2 {[%clk 0:00:52]} 24. Rd1 {[%clk 0:00:07]}  Rad8 {[%clk 0:00:51]} 25. Qb3 {[%clk 0:00:04]}  Bd4 {[%clk 0:00:48]} 26. Qc2 {[%clk 0:00:01]}  Bxf2+ {[%clk 0:00:47]} 27. Kh1 {[%clk 0:00:01]}  Rxd1+ {[%clk 0:00:47]} 28. Qxd1 {[%clk 0:00:02]}  Re1+ {[%clk 0:00:47]} 0-1


[Site "https://www.chess.com"]

[Event "Titled Tuesday Blitz August 24 2021"]
[White "Polivanov, Anatoliy"]
[Black "Kamsky, Gata"]
[WhiteFideId "14109468"]
[BlackFideId "2000024"]
[WhiteElo "2472"]
[BlackElo "2644"]
[Result "1-0"]
[Round "10"]
[TimeControl "180+1"]
[Date "2021.08.24"]
[WhiteClock "0:00:54"]
[BlackClock "0:00:01"]

1. d4 {[%clk 0:03:00]}  Nf6 {[%clk 0:02:55]} 2. Bg5 {[%clk 0:03:00]}  d5 {[%clk 0:02:54]} 3. e3 {[%clk 0:03:00]}  c5 {[%clk 0:02:53]} 4. Bxf6 {[%clk 0:02:55]}  gxf6 {[%clk 0:02:51]} 5. dxc5 {[%clk 0:02:51]}  e6 {[%clk 0:02:48]} 6. Bb5+ {[%clk 0:02:46]}  Nc6 {[%clk 0:02:27]} 7. b4 {[%clk 0:02:45]}  Bd7 {[%clk 0:02:26]} 8. c3 {[%clk 0:02:42]}  a5 {[%clk 0:02:27]} 9. Qb3 {[%clk 0:02:41]}  b6 {[%clk 0:02:08]} 10. Bxc6 {[%clk 0:02:32]}  Bxc6 {[%clk 0:02:08]} 11. b5 {[%clk 0:02:33]}  a4 {[%clk 0:02:08]} 12. Qb2 {[%clk 0:02:33]}  Bd7 {[%clk 0:02:03]} 13. c6 {[%clk 0:02:32]}  Bc8 {[%clk 0:02:03]} 14. Nf3 {[%clk 0:02:30]}  e5 {[%clk 0:01:57]} 15. O-O {[%clk 0:02:26]}  Be6 {[%clk 0:01:55]} 16. Nbd2 {[%clk 0:02:20]}  Qc7 {[%clk 0:01:48]} 17. Rad1 {[%clk 0:02:17]}  Rg8 {[%clk 0:01:42]} 18. g3 {[%clk 0:02:14]}  a3 {[%clk 0:01:37]} 19. Qb1 {[%clk 0:02:12]}  h5 {[%clk 0:01:29]} 20. Nh4 {[%clk 0:02:06]}  Ra4 {[%clk 0:01:20]} 21. e4 {[%clk 0:01:50]}  Bh3 {[%clk 0:01:09]} 22. Qb3 {[%clk 0:01:42]}  Qa7 {[%clk 0:00:32]} 23. Qxd5 {[%clk 0:01:29]}  Be6 {[%clk 0:00:21]} 24. Qd3 {[%clk 0:01:25]}  Bxa2 {[%clk 0:00:13]} 25. c4 {[%clk 0:01:25]}  Bb4 {[%clk 0:00:11]} 26. Nf5 {[%clk 0:01:06]}  Rg5 {[%clk 0:00:05]} 27. Nf3 {[%clk 0:01:04]}  Qc7 {[%clk 0:00:01]} 28. Nxg5 {[%clk 0:01:01]}  fxg5 {[%clk 0:00:01]} 29. Qe3 {[%clk 0:00:54]} 1-0


[Site "https://www.chess.com"]

[Event "Titled Tuesday Blitz August 24 2021"]
[White "Praggnanandhaa R"]
[Black "Jobava, Baadur"]
[WhiteFideId "25059530"]
[BlackFideId "13601520"]
[WhiteElo "2555"]
[BlackElo "2748"]
[Result "1-0"]
[Round "10"]
[TimeControl "180+1"]
[Date "2021.08.24"]
[WhiteClock "0:00:08"]
[BlackClock "0:00:02"]

1. Nf3 {[%clk 0:03:00]}  d5 {[%clk 0:02:59]} 2. e3 {[%clk 0:03:00]}  c6 {[%clk 0:02:59]} 3. c4 {[%clk 0:03:00]}  Nf6 {[%clk 0:03:00]} 4. d4 {[%clk 0:03:00]}  Bf5 {[%clk 0:02:57]} 5. Nc3 {[%clk 0:02:59]}  e6 {[%clk 0:02:58]} 6. Nh4 {[%clk 0:02:58]}  g6 {[%clk 0:02:57]} 7. Qb3 {[%clk 0:02:55]}  Qe7 {[%clk 0:02:56]} 8. h3 {[%clk 0:02:46]}  h5 {[%clk 0:02:55]} 9. Be2 {[%clk 0:02:43]}  Qb4 {[%clk 0:02:43]} 10. c5 {[%clk 0:02:21]}  Qxb3 {[%clk 0:02:39]} 11. axb3 {[%clk 0:02:22]}  Be7 {[%clk 0:02:19]} 12. b4 {[%clk 0:02:20]}  Be4 {[%clk 0:02:09]} 13. Nf3 {[%clk 0:02:07]}  Bxf3 {[%clk 0:02:03]} 14. gxf3 {[%clk 0:02:06]}  Kd7 {[%clk 0:02:02]} 15. b5 {[%clk 0:02:05]}  a6 {[%clk 0:01:54]} 16. Bd2 {[%clk 0:01:39]}  Rc8 {[%clk 0:01:50]} 17. f4 {[%clk 0:01:26]}  Ne4 {[%clk 0:01:46]} 18. Nxe4 {[%clk 0:01:22]}  dxe4 {[%clk 0:01:47]} 19. b4 {[%clk 0:01:12]}  cxb5 {[%clk 0:01:33]} 20. Bxb5+ {[%clk 0:01:12]}  Nc6 {[%clk 0:01:33]} 21. Ba4 {[%clk 0:01:12]}  Kc7 {[%clk 0:01:23]} 22. Ke2 {[%clk 0:01:11]}  b5 {[%clk 0:01:12]} 23. Bc2 {[%clk 0:01:09]}  f5 {[%clk 0:01:12]} 24. Bb3 {[%clk 0:01:09]}  Kd7 {[%clk 0:01:09]} 25. Rhg1 {[%clk 0:01:09]}  g5 {[%clk 0:00:51]} 26. fxg5 {[%clk 0:01:06]}  Bf8 {[%clk 0:00:43]} 27. Bc3 {[%clk 0:00:54]}  Ne7 {[%clk 0:00:40]} 28. Ra5 {[%clk 0:00:48]}  Nc6 {[%clk 0:00:27]} 29. Ra2 {[%clk 0:00:48]}  Ne7 {[%clk 0:00:23]} 30. Rga1 {[%clk 0:00:46]}  Rc6 {[%clk 0:00:22]} 31. Bd2 {[%clk 0:00:41]}  h4 {[%clk 0:00:17]} 32. Ra5 {[%clk 0:00:36]}  Nd5 {[%clk 0:00:16]} 33. Rxb5 {[%clk 0:00:34]}  Be7 {[%clk 0:00:12]} 34. Rba5 {[%clk 0:00:31]}  Rb8 {[%clk 0:00:08]} 35. Ba4 {[%clk 0:00:30]}  Nc7 {[%clk 0:00:06]} 36. Bxc6+ {[%clk 0:00:21]}  Kxc6 {[%clk 0:00:06]} 37. g6 {[%clk 0:00:22]}  Kd5 {[%clk 0:00:04]} 38. Rg1 {[%clk 0:00:14]}  Rg8 {[%clk 0:00:03]} 39. Kd1 {[%clk 0:00:13]}  Bf6 {[%clk 0:00:03]} 40. Kc2 {[%clk 0:00:13]}  Kc4 {[%clk 0:00:02]} 41. Ra4 {[%clk 0:00:07]}  Kb5 {[%clk 0:00:01]} 42. Kb3 {[%clk 0:00:07]}  e5 {[%clk 0:00:01]} 43. Ra5+ {[%clk 0:00:07]}  Kc6 {[%clk 0:00:01]} 44. dxe5 {[%clk 0:00:07]}  Bxe5 {[%clk 0:00:02]} 45. Bc3 {[%clk 0:00:08]} 1-0


[Site "https://www.chess.com"]

[Event "Titled Tuesday Blitz August 24 2021"]
[White "Rahman, Ziaur"]
[Black "Yeletsky, Ivan"]
[WhiteFideId "10200037"]
[BlackFideId "24180327"]
[WhiteElo "2460"]
[BlackElo "2344"]
[Result "1-0"]
[Round "10"]
[TimeControl "180+1"]
[Date "2021.08.24"]
[WhiteClock "0:00:34"]
[BlackClock "0:01:27"]

1. Nf3 {[%clk 0:03:00]}  c5 {[%clk 0:02:59]} 2. g3 {[%clk 0:02:54]}  Nc6 {[%clk 0:02:58]} 3. Bg2 {[%clk 0:02:49]}  g6 {[%clk 0:02:58]} 4. O-O {[%clk 0:02:40]}  Bg7 {[%clk 0:02:58]} 5. c4 {[%clk 0:02:37]}  d6 {[%clk 0:02:58]} 6. Nc3 {[%clk 0:02:37]}  e5 {[%clk 0:02:58]} 7. b3 {[%clk 0:02:33]}  Nge7 {[%clk 0:02:57]} 8. Bb2 {[%clk 0:02:32]}  O-O {[%clk 0:02:58]} 9. d3 {[%clk 0:02:28]}  a6 {[%clk 0:02:57]} 10. a3 {[%clk 0:02:20]}  Rb8 {[%clk 0:02:57]} 11. Rb1 {[%clk 0:02:10]}  b5 {[%clk 0:02:57]} 12. Nd2 {[%clk 0:02:06]}  h6 {[%clk 0:02:49]} 13. e3 {[%clk 0:02:01]}  Be6 {[%clk 0:02:47]} 14. Nd5 {[%clk 0:02:01]}  Qd7 {[%clk 0:02:42]} 15. Qc2 {[%clk 0:02:00]}  Bh3 {[%clk 0:02:37]} 16. Ne4 {[%clk 0:01:57]}  Nxd5 {[%clk 0:02:35]} 17. Bxh3 {[%clk 0:01:42]}  Qxh3 {[%clk 0:02:34]} 18. cxd5 {[%clk 0:01:42]}  Ne7 {[%clk 0:02:34]} 19. Nxd6 {[%clk 0:01:42]}  Qd7 {[%clk 0:02:19]} 20. Qxc5 {[%clk 0:01:35]}  f5 {[%clk 0:02:19]} 21. a4 {[%clk 0:01:22]}  Rfd8 {[%clk 0:02:17]} 22. Ba3 {[%clk 0:01:22]}  b4 {[%clk 0:02:10]} 23. Bxb4 {[%clk 0:01:22]}  Rxb4 {[%clk 0:02:11]} 24. Qxb4 {[%clk 0:01:16]}  Qxd6 {[%clk 0:02:11]} 25. Qxd6 {[%clk 0:01:16]}  Rxd6 {[%clk 0:02:12]} 26. e4 {[%clk 0:01:17]}  a5 {[%clk 0:02:10]} 27. b4 {[%clk 0:01:13]}  axb4 {[%clk 0:02:08]} 28. Rxb4 {[%clk 0:01:14]}  Rd7 {[%clk 0:01:53]} 29. Rfb1 {[%clk 0:01:10]}  Nxd5 {[%clk 0:01:26]} 30. exd5 {[%clk 0:01:06]}  Rxd5 {[%clk 0:01:27]} 31. Rb8+ {[%clk 0:01:00]}  Kh7 {[%clk 0:01:27]} 32. R1b7 {[%clk 0:00:53]}  h5 {[%clk 0:01:27]} 33. Rc8 {[%clk 0:00:50]}  Kh6 {[%clk 0:01:26]} 34. Rcc7 {[%clk 0:00:39]}  Bf6 {[%clk 0:01:26]} 35. h4 {[%clk 0:00:38]}  g5 {[%clk 0:01:26]} 36. Rc6 {[%clk 0:00:36]}  Kg6 {[%clk 0:01:26]} 37. Rbb6 {[%clk 0:00:35]}  gxh4 {[%clk 0:01:26]} 38. Rxf6+ {[%clk 0:00:34]}  Kg5 {[%clk 0:01:27]} 39. Rg6# {[%clk 0:00:34]} 1-0


[Site "https://www.chess.com"]

[Event "Titled Tuesday Blitz August 24 2021"]
[White "Reprintsev, Alexander"]
[Black "Viani Antonio Dcunha"]
[WhiteFideId "14100541"]
[BlackFideId "5027330"]
[WhiteElo "2126"]
[BlackElo "2366"]
[Result "0-1"]
[Round "10"]
[TimeControl "180+1"]
[Date "2021.08.24"]
[WhiteClock "0:00:07"]
[BlackClock "0:00:08"]

1. e4 {[%clk 0:03:00]}  e5 {[%clk 0:02:58]} 2. f4 {[%clk 0:02:59]}  exf4 {[%clk 0:02:47]} 3. Bc4 {[%clk 0:02:59]}  d5 {[%clk 0:02:43]} 4. Bxd5 {[%clk 0:02:58]}  Nf6 {[%clk 0:02:42]} 5. Nc3 {[%clk 0:02:58]}  Nxd5 {[%clk 0:02:33]} 6. Nxd5 {[%clk 0:02:56]}  Qh4+ {[%clk 0:02:15]} 7. Kf1 {[%clk 0:02:55]}  Bd6 {[%clk 0:02:02]} 8. Nf3 {[%clk 0:02:54]}  Qh5 {[%clk 0:01:55]} 9. d4 {[%clk 0:02:53]}  O-O {[%clk 0:01:40]} 10. Nxf4 {[%clk 0:02:46]}  Bxf4 {[%clk 0:01:27]} 11. Bxf4 {[%clk 0:02:45]}  Nc6 {[%clk 0:01:27]} 12. Qd3 {[%clk 0:02:42]}  Bg4 {[%clk 0:01:24]} 13. Re1 {[%clk 0:02:38]}  Bxf3 {[%clk 0:01:18]} 14. gxf3 {[%clk 0:02:37]}  Nxd4 {[%clk 0:01:17]} 15. Kg2 {[%clk 0:01:45]}  Rad8 {[%clk 0:01:09]} 16. Bg3 {[%clk 0:01:43]}  Ne6 {[%clk 0:00:59]} 17. Qe3 {[%clk 0:01:38]}  c5 {[%clk 0:00:50]} 18. c3 {[%clk 0:01:37]}  Rd7 {[%clk 0:00:48]} 19. Rd1 {[%clk 0:01:37]}  Rfd8 {[%clk 0:00:47]} 20. Rxd7 {[%clk 0:01:36]}  Rxd7 {[%clk 0:00:48]} 21. Re1 {[%clk 0:01:34]}  Qg6 {[%clk 0:00:42]} 22. Re2 {[%clk 0:01:24]}  h5 {[%clk 0:00:41]} 23. h4 {[%clk 0:01:20]}  Qf6 {[%clk 0:00:37]} 24. Kh2 {[%clk 0:01:14]}  Qd8 {[%clk 0:00:34]} 25. f4 {[%clk 0:01:10]}  Rd3 {[%clk 0:00:30]} 26. Qf2 {[%clk 0:01:08]}  Nf8 {[%clk 0:00:29]} 27. f5 {[%clk 0:01:07]}  Rd1 {[%clk 0:00:20]} 28. Qg2 {[%clk 0:01:01]}  Qd3 {[%clk 0:00:14]} 29. Be5 {[%clk 0:00:55]}  g6 {[%clk 0:00:14]} 30. Bf4 {[%clk 0:00:46]}  Kh7 {[%clk 0:00:13]} 31. Be3 {[%clk 0:00:27]}  Nd7 {[%clk 0:00:12]} 32. fxg6+ {[%clk 0:00:22]}  fxg6 {[%clk 0:00:13]} 33. Bg5 {[%clk 0:00:21]}  Ne5 {[%clk 0:00:10]} 34. Re3 {[%clk 0:00:15]}  Ng4+ {[%clk 0:00:08]} 35. Qxg4 {[%clk 0:00:15]}  hxg4 {[%clk 0:00:09]} 36. Rxd3 {[%clk 0:00:15]}  Rxd3 {[%clk 0:00:10]} 37. Be7 {[%clk 0:00:13]}  c4 {[%clk 0:00:10]} 38. b3 {[%clk 0:00:12]}  b5 {[%clk 0:00:10]} 39. bxc4 {[%clk 0:00:12]}  bxc4 {[%clk 0:00:11]} 40. Bb4 {[%clk 0:00:12]}  Kh6 {[%clk 0:00:10]} 41. e5 {[%clk 0:00:11]}  Re3 {[%clk 0:00:08]} 42. Bd6 {[%clk 0:00:09]}  Kh5 {[%clk 0:00:08]} 43. Kg2 {[%clk 0:00:10]}  Kxh4 {[%clk 0:00:08]} 44. a4 {[%clk 0:00:11]}  g3 {[%clk 0:00:05]} 45. a5 {[%clk 0:00:10]}  a6 {[%clk 0:00:05]} 46. Bc7 {[%clk 0:00:09]}  Kg4 {[%clk 0:00:05]} 47. Bd6 {[%clk 0:00:08]}  Re2+ {[%clk 0:00:05]} 48. Kf1 {[%clk 0:00:08]}  Kf3 {[%clk 0:00:06]} 49. e6 {[%clk 0:00:07]}  g2+ {[%clk 0:00:07]} 50. Kg1 {[%clk 0:00:07]}  Re1+ {[%clk 0:00:08]} 0-1


[Site "https://www.chess.com"]

[Event "Titled Tuesday Blitz August 24 2021"]
[White "Samsonkin, Artiom"]
[Black "Tsyhanchuk, Stanislav"]
[WhiteFideId "13503111"]
[BlackFideId "13505130"]
[WhiteElo "2513"]
[BlackElo "2121"]
[Result "0-1"]
[Round "10"]
[TimeControl "180+1"]
[Date "2021.08.24"]
[WhiteClock "0:00:01"]
[BlackClock "0:00:01"]

1. e4 {[%clk 0:03:00]}  c5 {[%clk 0:02:54]} 2. Nf3 {[%clk 0:03:00]}  Nc6 {[%clk 0:02:54]} 3. Bb5 {[%clk 0:02:59]}  d6 {[%clk 0:02:54]} 4. d4 {[%clk 0:02:57]}  cxd4 {[%clk 0:02:54]} 5. Qxd4 {[%clk 0:02:58]}  Bd7 {[%clk 0:02:55]} 6. Bxc6 {[%clk 0:02:57]}  Bxc6 {[%clk 0:02:56]} 7. Nc3 {[%clk 0:02:58]}  Nf6 {[%clk 0:02:53]} 8. Bg5 {[%clk 0:02:58]}  e6 {[%clk 0:02:53]} 9. O-O-O {[%clk 0:02:57]}  Be7 {[%clk 0:02:53]} 10. Rhe1 {[%clk 0:02:56]}  O-O {[%clk 0:02:53]} 11. Kb1 {[%clk 0:02:56]}  h6 {[%clk 0:02:52]} 12. Bh4 {[%clk 0:02:56]}  d5 {[%clk 0:02:32]} 13. Ne5 {[%clk 0:02:19]}  Nxe4 {[%clk 0:02:10]} 14. Bxe7 {[%clk 0:01:58]}  Nxc3+ {[%clk 0:02:08]} 15. Qxc3 {[%clk 0:01:58]}  Qxe7 {[%clk 0:02:09]} 16. f4 {[%clk 0:01:58]}  Rac8 {[%clk 0:01:55]} 17. Qd4 {[%clk 0:01:56]}  a5 {[%clk 0:01:41]} 18. f5 {[%clk 0:01:45]}  Qb4 {[%clk 0:01:24]} 19. Qf2 {[%clk 0:01:40]}  exf5 {[%clk 0:01:16]} 20. Qxf5 {[%clk 0:01:32]}  a4 {[%clk 0:01:07]} 21. a3 {[%clk 0:01:28]}  Qd6 {[%clk 0:01:01]} 22. Re3 {[%clk 0:00:49]}  d4 {[%clk 0:00:51]} 23. Rg3 {[%clk 0:00:42]}  Bd5 {[%clk 0:00:37]} 24. Qf4 {[%clk 0:00:29]}  Rfe8 {[%clk 0:00:22]} 25. Re1 {[%clk 0:00:28]}  Rc7 {[%clk 0:00:14]} 26. Qg4 {[%clk 0:00:16]}  f6 {[%clk 0:00:13]} 27. Nd3 {[%clk 0:00:17]}  Be6 {[%clk 0:00:10]} 28. Qf3 {[%clk 0:00:14]}  Rec8 {[%clk 0:00:09]} 29. Rc1 {[%clk 0:00:13]}  Bd5 {[%clk 0:00:07]} 30. Qg4 {[%clk 0:00:11]}  Be6 {[%clk 0:00:07]} 31. Qh4 {[%clk 0:00:11]}  Qd5 {[%clk 0:00:07]} 32. Nb4 {[%clk 0:00:09]}  Qe5 {[%clk 0:00:03]} 33. Qxh6 {[%clk 0:00:08]}  Qxg3 {[%clk 0:00:03]} 34. Qh5 {[%clk 0:00:04]}  Qg5 {[%clk 0:00:04]} 35. Qf3 {[%clk 0:00:04]}  Qg6 {[%clk 0:00:03]} 36. Re1 {[%clk 0:00:05]}  Qf7 {[%clk 0:00:04]} 37. Qg3 {[%clk 0:00:05]}  Bc4 {[%clk 0:00:03]} 38. h4 {[%clk 0:00:05]}  d3 {[%clk 0:00:04]} 39. cxd3 {[%clk 0:00:05]}  Bb3 {[%clk 0:00:04]} 40. h5 {[%clk 0:00:05]}  Re7 {[%clk 0:00:03]} 41. Rf1 {[%clk 0:00:05]}  Qxh5 {[%clk 0:00:02]} 42. Qf2 {[%clk 0:00:03]}  Qe5 {[%clk 0:00:02]} 43. d4 {[%clk 0:00:03]}  Qe4+ {[%clk 0:00:03]} 44. Ka1 {[%clk 0:00:04]}  Qe2 {[%clk 0:00:02]} 45. Qf4 {[%clk 0:00:04]}  Qe1+ {[%clk 0:00:01]} 46. Qc1 {[%clk 0:00:01]}  Qxc1+ {[%clk 0:00:01]} 0-1


[Site "https://www.chess.com"]

[Event "Titled Tuesday Blitz August 24 2021"]
[White "Sanchez Alvares, Kelvin Antonio"]
[Black "Biletskiy, Danylo"]
[WhiteFideId "3906680"]
[BlackFideId "14155419"]
[WhiteElo "2247"]
[BlackElo "2099"]
[Result "1-0"]
[Round "10"]
[TimeControl "180+1"]
[Date "2021.08.24"]
[WhiteClock "0:01:58"]
[BlackClock "0:01:48"]

1. d4 {[%clk 0:03:00]}  Nf6 {[%clk 0:02:58]} 2. c4 {[%clk 0:02:59]}  e6 {[%clk 0:02:58]} 3. Nf3 {[%clk 0:02:59]}  d5 {[%clk 0:02:58]} 4. Nc3 {[%clk 0:02:56]}  dxc4 {[%clk 0:02:57]} 5. e4 {[%clk 0:02:54]}  Bb4 {[%clk 0:02:58]} 6. Bg5 {[%clk 0:02:53]}  c5 {[%clk 0:02:56]} 7. Bxc4 {[%clk 0:02:50]}  cxd4 {[%clk 0:02:54]} 8. Nxd4 {[%clk 0:02:44]}  Bxc3+ {[%clk 0:02:54]} 9. bxc3 {[%clk 0:02:43]}  Qa5 {[%clk 0:02:55]} 10. Bb5+ {[%clk 0:02:38]}  Nbd7 {[%clk 0:02:51]} 11. Bxf6 {[%clk 0:02:36]}  Qxc3+ {[%clk 0:02:49]} 12. Ke2 {[%clk 0:02:29]}  Qb2+ {[%clk 0:02:49]} 13. Qd2 {[%clk 0:02:19]}  Qxd2+ {[%clk 0:02:45]} 14. Kxd2 {[%clk 0:02:20]}  gxf6 {[%clk 0:02:45]} 15. Rhc1 {[%clk 0:02:20]}  a6 {[%clk 0:02:46]} 16. Bxd7+ {[%clk 0:02:10]}  Kxd7 {[%clk 0:02:38]} 17. Ke3 {[%clk 0:02:09]}  b5 {[%clk 0:02:36]} 18. a4 {[%clk 0:02:06]}  bxa4 {[%clk 0:01:57]} 19. Rxa4 {[%clk 0:02:03]}  Ra7 {[%clk 0:01:51]} 20. Nb3 {[%clk 0:02:00]}  Rc7 {[%clk 0:01:48]} 21. Rd4+ {[%clk 0:01:58]} 1-0


[Site "https://www.chess.com"]

[Event "Titled Tuesday Blitz August 24 2021"]
[White "Sjugirov, Sanan"]
[Black "Zhigalko, Sergei"]
[WhiteFideId "4189302"]
[BlackFideId "13502956"]
[WhiteElo "2472"]
[BlackElo "2662"]
[Result "1/2-1/2"]
[Round "10"]
[TimeControl "180+1"]
[Date "2021.08.24"]
[WhiteClock "0:00:05"]
[BlackClock "0:00:02"]

1. Nf3 {[%clk 0:03:00]}  d5 {[%clk 0:03:00]} 2. d4 {[%clk 0:02:56]}  e6 {[%clk 0:02:59]} 3. c4 {[%clk 0:02:56]}  c6 {[%clk 0:02:59]} 4. Nbd2 {[%clk 0:02:52]}  f5 {[%clk 0:02:57]} 5. g3 {[%clk 0:02:41]}  Bd6 {[%clk 0:02:54]} 6. Bg2 {[%clk 0:02:41]}  Nd7 {[%clk 0:02:54]} 7. b3 {[%clk 0:02:34]}  Ngf6 {[%clk 0:02:53]} 8. Bb2 {[%clk 0:02:34]}  Ne4 {[%clk 0:02:52]} 9. Qc2 {[%clk 0:02:26]}  O-O {[%clk 0:02:50]} 10. O-O {[%clk 0:02:24]}  Qe7 {[%clk 0:02:43]} 11. Rad1 {[%clk 0:02:11]}  b6 {[%clk 0:02:42]} 12. Ne1 {[%clk 0:01:57]}  Bb7 {[%clk 0:02:37]} 13. Nd3 {[%clk 0:01:53]}  Rac8 {[%clk 0:02:35]} 14. Nf3 {[%clk 0:01:41]}  c5 {[%clk 0:02:34]} 15. dxc5 {[%clk 0:01:30]}  Ndxc5 {[%clk 0:02:33]} 16. Nde5 {[%clk 0:01:15]}  Rfd8 {[%clk 0:02:20]} 17. Qb1 {[%clk 0:01:13]}  a5 {[%clk 0:02:10]} 18. cxd5 {[%clk 0:01:06]}  Bxd5 {[%clk 0:02:09]} 19. Nd3 {[%clk 0:01:01]}  Nxd3 {[%clk 0:01:50]} 20. Qxd3 {[%clk 0:00:59]}  Bc5 {[%clk 0:01:39]} 21. Qb1 {[%clk 0:00:47]}  Nxf2 {[%clk 0:01:13]} 22. Rxf2 {[%clk 0:00:39]}  Be4 {[%clk 0:01:14]} 23. Qa1 {[%clk 0:00:32]}  Rxd1+ {[%clk 0:00:46]} 24. Qxd1 {[%clk 0:00:33]}  Be3 {[%clk 0:00:47]} 25. Qf1 {[%clk 0:00:04]}  Bxf3 {[%clk 0:00:14]} 26. Bxf3 {[%clk 0:00:05]}  Rc2 {[%clk 0:00:14]} 27. Qa1 {[%clk 0:00:02]}  Qc5 {[%clk 0:00:13]} 28. Kg2 {[%clk 0:00:02]}  Rxb2 {[%clk 0:00:05]} 29. Qxb2 {[%clk 0:00:02]}  Bxf2 {[%clk 0:00:06]} 30. b4 {[%clk 0:00:02]}  axb4 {[%clk 0:00:04]} 31. Qb3 {[%clk 0:00:03]}  Kf7 {[%clk 0:00:04]} 32. Qa4 {[%clk 0:00:03]}  Bd4 {[%clk 0:00:03]} 33. Qd7+ {[%clk 0:00:04]}  Kf6 {[%clk 0:00:02]} 34. Qd8+ {[%clk 0:00:04]}  Kf7 {[%clk 0:00:02]} 35. Qd7+ {[%clk 0:00:04]}  Kf6 {[%clk 0:00:03]} 36. Qd8+ {[%clk 0:00:05]}  Ke5 {[%clk 0:00:03]} 37. Qd7 {[%clk 0:00:05]}  Kf6 {[%clk 0:00:02]} 1/2-1/2


[Site "https://www.chess.com"]